bitfinex-derivatives/quotes_ETHF0:USTF0_20250918
["timestamp","ask_amount","ask_price","bid_price","bid_amount"]
[1758197826486,3.6277,4580.2,4580.1,0.7057]
[1758197827286,3.8021,4580.2,4580.1,0.5076]
[1758197831593,3.6277,4580.2,4580.1,0.5076]
[1758197831793,3.6277,4580.2,4580.1,0.7057]
[1758197832390,3.8021,4580.2,4580.1,0.3069]
[1758197832688,0.211,4579.7,4579.6,0.7129]
[1758197834494,3.6221,4579.7,4579.1,0.3062]
[1758197834796,0.1744,4579.6,4579.5,0.1158]
[1758197834996,0.5887,4579.6,4579.5,0.6306]
[1758197835494,0.5887,4579.6,4579.5,0.422]
[1758197835696,0.1744,4579.1,4579.0,0.119]
[1758197835889,3.7965,4579.1,4579.0,0.119]
[1758197836290,3.7965,4579.1,4579.0,0.4252]
[1758197837797,0.4143,4578.7,4578.6,0.3062]
[1758197838098,0.5887,4578.7,4578.6,0.3062]
[1758197839196,0.5887,4578.7,4577.6,0.39305]
[1758197839496,0.4143,4578.2,4578.1,0.5148]
[1758197839696,3.6221,4578.2,4578.1,0.7129]
[1758197840601,3.2078,4578.2,4578.1,1.10591]
[1758197840795,3.2078,4578.2,4578.1,0.7129]
[1758197841797,3.2078,4578.8,4578.1,4.7129]
[1758197841998,3.4188,4578.8,4578.7,0.4067]
[1758197842195,3.4188,4578.8,4578.7,0.7129]
[1758197842701,3.6221,4578.8,4578.7,0.7129]
[1758197843102,3.7965,4578.8,4578.7,0.7129]
[1758197844306,3.6221,4578.8,4578.7,0.7129]
[1758197847307,3.7965,4578.8,4578.7,0.3062]
[1758197847501,0.4143,4578.6,4578.0,0.1158]
[1758197847812,3.7965,4578.1,4578.0,0.6306]
[1758197848216,3.6221,4578.1,4578.0,0.6306]
[1758197849010,3.6221,4578.1,4578.0,0.8287]
[1758197849507,3.2078,4578.6,4578.1,0.39301]
[1758197849713,3.4188,4578.6,4578.5,0.8287]
[1758197851401,3.7965,4578.6,4578.5,0.8287]
[1758197854214,3.7965,4578.6,4578.1,0.3062]
[1758197854412,0.5887,4578.1,4578.0,0.422]
[1758197854614,3.7965,4578.1,4578.0,0.422]
[1758197855015,3.7965,4578.1,4577.9,0.0218]
[1758197855212,3.6221,4578.1,4577.2,0.3062]
[1758197855416,3.774,4577.3,4577.2,0.3062]
[1758197855719,3.774,4577.3,4577.2,0.5025]
[1758197855924,3.6213,4577.3,4577.2,0.5025]
[1758197856220,3.774,4577.3,4577.2,0.5025]
[1758197857312,3.6213,4577.3,4577.2,0.5025]
[1758197859021,3.774,4577.3,4577.2,0.5025]
[1758197860213,3.6213,4577.3,4577.2,0.7065]
[1758197860718,3.2078,4577.8,4577.7,0.6908]
[1758197861823,0.1527,4578.8,4578.4,0.4868]
[1758197861824,3.6213,4578.5,4578.4,0.4868]
[1758197863219,3.6213,4578.5,4578.4,0.6908]
[1758197867326,3.4122,4578.5,4578.4,0.6908]
[1758197868220,0.2044,4578.5,4578.4,0.6908]
[1758197869623,3.3605,4579.1,4578.4,4.4003]
[1758197869820,3.2078,4579.1,4579.0,0.6123]
[1758197870022,3.4122,4579.1,4579.0,0.8163]
[1758197870228,0.2044,4579.1,4579.0,0.8163]
[1758197870928,3.6213,4579.6,4579.5,0.6123]
[1758197871123,3.6213,4579.6,4579.5,0.8163]
[1758197873828,3.774,4579.6,4579.5,0.8163]
[1758197874029,3.774,4579.6,4579.5,0.6123]
[1758197874427,0.1527,4579.0,4578.6,0.2905]
[1758197874727,0.5662,4578.7,4578.6,0.4868]
[1758197874928,0.4135,4578.7,4578.6,0.4868]
[1758197875323,0.4135,4578.7,4578.6,0.6908]
[1758197877428,0.2015,4578.7,4578.6,0.4003]
[1758197877628,0.2015,4578.7,4578.6,0.7138]
[1758197879933,3.2078,4579.0,4578.6,0.4003]
[1758197880135,0.2015,4578.8,4578.7,0.7185]
[1758197880438,0.2015,4579.1,4579.0,0.526]
[1758197880731,3.4093,4579.5,4579.4,0.405]
[1758197880931,3.4093,4579.5,4579.4,0.7185]
[1758197881326,3.6169,4579.5,4579.4,0.7185]
[1758197881830,3.7697,4579.5,4579.4,0.5153]
[1758197882037,3.7697,4579.5,4579.4,0.3135]
[1758197882228,3.6169,4579.5,4579.0,0.121]
[1758197882535,0.5619,4579.2,4579.1,0.3135]
[1758197885532,0.4091,4579.2,4579.1,0.5153]
[1758197885737,3.2078,4579.5,4579.2,0.3199]
[1758197886033,3.2078,4579.5,4579.4,0.7301]
[1758197888135,3.2078,4579.5,4579.0,0.121]
[1758197888136,0.2065,4579.6,4579.5,0.855]
[1758197889132,3.2078,4580.1,4579.5,0.855]
[1758197889133,3.6167,4580.1,4580.0,0.6562]
[1758197889332,3.6167,4580.1,4580.0,0.855]
[1758197891033,3.7694,4580.1,4580.0,0.6562]
[1758197892735,0.1527,4579.6,4579.3,0.3199]
[1758197893038,0.1527,4579.6,4579.0,0.51392]
[1758197893039,0.4089,4579.1,4579.0,0.3324]
[1758197893736,0.4089,4579.1,4579.0,0.6523]
[1758197894637,0.1527,4579.0,4578.6,0.3199]
[1758197894837,0.5616,4578.7,4578.6,0.3199]
[1758197895139,0.5616,4578.7,4578.6,0.5313]
[1758197895338,0.4089,4578.7,4578.6,0.5313]
[1758197896536,0.2065,4578.4,4578.3,0.3199]
[1758197896835,0.5616,4577.8,4577.5,0.1249]
[1758197897040,0.5616,4577.7,4577.6,0.3417]
[1758197897338,0.5616,4577.7,4577.6,0.3199]
[1758197897540,0.5616,4577.7,4577.6,0.5313]
[1758197897735,0.5616,4577.7,4577.6,0.3199]
[1758197897934,0.5616,4577.7,4577.1,0.3199]
[1758197898933,0.4089,4577.7,4577.6,0.2114]
[1758197899133,0.4089,4577.7,4577.6,0.5313]
[1758197899333,0.4089,4577.7,4577.6,0.7301]
[1758197901443,0.5616,4577.7,4577.2,0.3199]
[1758197901744,3.7694,4577.3,4577.2,0.3199]
[1758197901944,3.7694,4577.3,4577.1,0.0218]
[1758197902243,0.5616,4577.2,4577.1,0.0218]
[1758197903243,0.5616,4577.2,4576.6,0.3199]
[1758197903641,0.5616,4577.2,4577.0,0.1249]
[1758197903841,0.4089,4577.2,4577.1,0.5313]
[1758197905245,0.4089,4577.2,4577.1,0.7301]
[1758197905551,0.2065,4577.2,4577.1,0.7301]
[1758197905948,3.2078,4577.3,4577.2,0.5313]
[1758197906147,3.2078,4577.3,4577.2,0.7301]
[1758197908348,3.4143,4577.3,4577.2,0.7301]
[1758197909049,3.2078,4577.3,4577.2,0.7301]
[1758197910153,3.4143,4577.3,4577.2,0.7301]
[1758197912650,3.2078,4577.3,4577.2,0.7301]
[1758197913550,3.2078,4577.9,4577.2,0.7301]
[1758197913746,3.2078,4577.9,4577.5,0.1249]
[1758197913951,0.2065,4577.6,4577.5,0.855]
[1758197914749,0.5616,4577.6,4577.5,0.4448]
[1758197915054,0.5616,4577.6,4577.5,0.3199]
[1758197915448,0.2065,4577.6,4577.5,0.8535]
[1758197915949,3.2078,4577.9,4577.5,0.8535]
[1758197916251,3.2078,4577.9,4577.8,0.7214]
[1758197916455,3.4071,4577.9,4577.8,0.7214]
[1758197916651,3.2078,4577.9,4577.8,0.7214]
[1758197917455,3.4071,4577.9,4577.8,0.7214]
[1758197919451,3.4071,4577.9,4577.8,1.11443]
[1758197919850,3.4071,4577.9,4577.8,0.7214]
[1758197921964,3.6115,4577.9,4577.8,0.7214]
[1758197925958,3.7643,4577.9,4577.8,0.5212]
[1758197926664,3.7643,4577.9,4577.8,0.3183]
[1758197927961,3.6115,4577.9,4577.8,0.5212]
[1758197928169,3.4071,4577.9,4577.8,0.7214]
[1758197930674,3.6115,4577.9,4577.8,0.7214]
[1758197931986,3.7643,4577.9,4577.8,0.7214]
[1758197932886,3.6115,4577.9,4577.8,0.7214]
[1758197933887,0.4037,4577.9,4577.8,0.7214]
[1758197934887,0.5565,4577.9,4577.8,0.3183]
[1758197935079,0.5565,4577.9,4577.5,0.1438]
[1758197935080,0.5565,4577.9,4577.6,0.3183]
[1758197935275,0.5565,4577.7,4577.5,0.0218]
[1758197935477,0.1528,4577.6,4577.5,0.0218]
[1758197935688,0.4037,4577.6,4577.1,0.3183]
[1758197935986,0.5565,4577.5,4577.4,0.5212]
[1758197937686,0.4037,4577.5,4577.4,0.5212]
[1758197939390,0.5566,4577.5,4577.4,0.5212]
[1758197940391,0.5566,4577.5,4577.4,0.3183]
[1758197940586,0.1529,4577.4,4577.2,0.3184]
[1758197940791,0.5482,4577.3,4577.2,0.3184]
[1758197940993,0.5482,4577.3,4577.2,0.5144]
[1758197942197,0.3953,4577.3,4577.2,0.7215]
[1758197942691,0.1529,4577.9,4577.2,0.4249]
[1758197942995,0.37136001,4577.9,4577.3,0.2966]
[1758197943200,0.3953,4577.6,4577.5,0.6188]
[1758197944386,0.3953,4577.6,4577.5,0.8259]
[1758197947197,0.1949,4577.6,4577.5,0.8259]
[1758197947695,3.2078,4578.0,4577.5,0.5293]
[1758197948001,3.2078,4578.0,4577.9,0.7275]
[1758197948394,3.4184,4578.0,4577.9,0.7275]
[1758197949296,0.22,4578.4,4578.0,0.127]
[1758197949494,0.22,4578.4,4578.3,0.7275]
[1758197949694,0.2106,4578.4,4578.3,0.7275]
[1758197951702,0.5663,4578.4,4578.3,0.5232]
[1758197951898,0.5663,4578.4,4578.3,0.3179]
[1758197953098,0.1529,4578.3,4577.6,0.3179]
[1758197953300,0.5663,4577.7,4577.6,0.3179]
[1758197953501,0.5663,4577.7,4577.6,0.5232]
[1758197953701,0.4134,4577.7,4577.6,0.5232]
[1758197954602,0.5663,4577.7,4577.6,0.3179]
[1758197956005,0.5663,4577.7,4577.6,0.5232]
[1758197958400,0.4134,4577.7,4577.4,0.3179]
[1758197958606,0.5663,4577.5,4577.4,0.3179]
[1758197959007,0.4134,4577.5,4577.4,0.5232]
[1758197959198,0.4134,4577.5,4577.4,0.7275]
[1758197961203,0.2106,4577.5,4577.4,0.7275]
[1758197961507,0.22,4577.8,4577.4,1.12056]
[1758197961810,3.2078,4578.0,4577.9,0.4096]
[1758197962111,3.2078,4578.0,4577.9,0.7275]
[1758197962312,3.4184,4578.0,4577.9,0.7275]
[1758197963110,3.6212,4578.0,4577.9,0.7275]
[1758197963605,3.7741,4578.0,4577.5,0.127]
[1758197963812,0.5663,4577.6,4577.5,0.4449]
[1758197964113,0.4134,4577.6,4577.5,0.6502]
[1758197965215,0.4134,4577.6,4577.5,0.8545]
[1758197970511,0.2106,4577.6,4577.5,0.8545]
[1758197970818,3.2078,4578.0,4577.9,0.7275]
[1758197971107,3.4278,4578.0,4577.9,0.7275]
[1758197971313,3.6384,4578.0,4577.9,0.7275]
[1758197971514,3.8412,4578.0,4577.9,0.7275]
[1758197972620,3.6384,4578.0,4577.9,0.7275]
[1758197973112,3.4184,4578.0,4577.9,0.7275]
[1758197973304,3.6384,4578.0,4577.9,0.7275]
[1758197973911,0.4306,4578.0,4577.9,0.7275]
[1758197975118,3.8412,4578.0,4577.9,0.5232]
[1758197976818,3.6212,4578.0,4577.9,0.5232]
[1758197977018,3.8412,4578.0,4577.9,0.5232]
[1758197977214,3.8412,4578.0,4577.9,0.7157]
[1758197977917,3.9941,4578.0,4577.9,0.7157]
[1758197978109,3.9941,4578.0,4577.9,0.5232]
[1758197979019,3.8412,4578.0,4577.9,1.10872]
[1758197979314,3.8412,4578.0,4577.9,0.7157]
[1758197981622,3.2078,4578.0,4577.9,0.7157]
[1758197981922,0.5625,4578.0,4577.9,0.3179]
[1758197982124,0.5625,4578.0,4577.9,0.517]
[1758197982422,0.4096,4578.0,4577.9,0.517]
[1758197983818,0.4096,4578.0,4577.9,0.7095]
[1758197985022,0.4096,4578.0,4577.9,1.10252]
[1758197985224,0.2011,4578.0,4577.9,1.10252]
[1758197985525,3.4089,4578.5,4578.4,0.6848]
[1758197985824,3.8374,4578.5,4578.4,0.6848]
[1758197986725,3.6174,4578.5,4578.4,0.6848]
[1758197986925,3.8374,4578.5,4578.4,0.6848]
[1758197987127,3.4089,4578.5,4578.4,1.07778]
[1758197987426,3.2078,4578.5,4578.4,1.07778]
[1758197989519,0.22,4579.0,4578.6,0.39296]
[1758197989728,0.4096,4579.0,4578.9,0.6848]
[1758197989923,0.6296,4579.0,4578.9,0.6848]
[1758197990521,0.4096,4579.0,4578.9,0.6848]
[1758197990721,0.6296,4579.0,4578.9,0.6848]
[1758197991323,0.7825,4579.0,4578.9,0.2932]
[1758197991619,0.1529,4578.9,4578.6,0.2932]
[1758197991825,0.5625,4578.7,4578.6,0.4923]
[1758197992320,0.4096,4578.7,4578.6,0.4923]
[1758197995521,0.5625,4578.7,4578.6,0.4923]
[1758197998328,0.4096,4578.7,4578.6,0.4923]
[1758197999230,0.4096,4578.7,4578.6,0.703]
[1758198000426,0.2087,4577.6,4577.5,0.6219]
[1758198000629,0.4168,4577.6,4577.5,0.6219]
[1758198000924,0.5697,4577.6,4577.5,0.4256]
[1758198001130,0.4168,4577.6,4577.5,0.6219]
[1758198001428,0.4168,4577.6,4577.5,0.8326]
[1758198004233,0.2087,4577.6,4577.5,0.8326]
[1758198005330,3.2078,4577.7,4577.5,0.534]
[1758198005529,3.2078,4577.7,4577.6,0.2968]
[1758198005727,3.4207,4577.7,4577.6,0.7152]
[1758198006637,3.6407,4577.7,4577.6,0.7152]
[1758198008442,3.4207,4577.7,4577.6,0.7152]
[1758198008740,3.6407,4577.7,4577.6,0.7152]
[1758198010039,3.4207,4577.7,4577.6,0.7152]
[1758198010246,3.6407,4577.7,4577.6,0.7152]
[1758198011339,3.4207,4577.7,4577.6,0.7152]
[1758198011546,3.6407,4577.7,4577.6,0.7152]
[1758198012544,3.2078,4577.7,4577.6,0.7152]
[1758198012748,0.22,4578.1,4578.0,0.838]
[1758198013042,0.4329,4578.1,4578.0,0.838]
[1758198013241,0.7876,4578.1,4578.0,0.2968]
[1758198013839,0.6347,4578.1,4578.0,0.6328]
[1758198014040,0.6347,4578.1,4578.0,0.838]
[1758198016047,0.2129,4578.1,4578.0,0.838]
[1758198016242,3.2078,4578.2,4578.1,0.2968]
[1758198016447,3.4207,4578.2,4578.1,0.7152]
[1758198016949,3.6225,4578.2,4578.1,0.7152]
[1758198018648,3.6407,4578.2,4578.1,0.7152]
[1758198019749,3.4207,4578.2,4578.1,0.7152]
[1758198019952,3.4278,4578.2,4578.1,0.7152]
[1758198020849,3.6407,4578.2,4578.1,0.7152]
[1758198022553,0.4329,4578.2,4578.1,0.7152]
[1758198023650,0.2129,4578.2,4578.1,0.7152]
[1758198024155,0.4147,4578.6,4578.5,0.838]
[1758198024346,0.6347,4578.6,4578.5,0.838]
[1758198024847,0.4147,4578.6,4578.5,0.838]
[1758198025045,0.6347,4578.6,4578.5,0.838]
[1758198029252,0.4147,4578.6,4578.5,0.838]
[1758198029547,0.6347,4578.6,4578.5,0.838]
[1758198029754,0.4147,4578.6,4578.5,0.838]
[1758198029950,0.6347,4578.6,4578.5,0.838]
[1758198030652,0.7876,4578.6,4578.5,0.838]
[1758198030852,0.7876,4578.6,4578.5,0.2968]
[1758198031246,0.5676,4578.6,4578.5,0.2968]
[1758198031446,0.7876,4578.6,4578.5,0.2968]
[1758198032747,0.7876,4578.6,4578.5,0.4196]
[1758198033247,0.7876,4578.6,4578.5,0.6328]
[1758198033854,0.6347,4578.6,4578.5,0.6328]
[1758198034954,0.6347,4578.6,4578.5,0.838]
[1758198037350,3.2078,4579.3,4579.0,0.1247]
[1758198037547,3.6231,4579.3,4579.2,0.7209]
[1758198037749,3.8431,4579.3,4579.2,0.7209]
[1758198038445,3.6231,4579.3,4579.2,0.7209]
[1758198038956,3.8431,4579.3,4579.2,0.7209]
[1758198039255,3.2078,4579.3,4579.2,0.7209]
[1758198039552,3.4278,4579.3,4579.2,0.7209]
[1758198039947,3.6404,4579.3,4579.2,0.7209]
[1758198040352,3.8431,4579.3,4579.2,0.7209]
[1758198041559,3.6231,4579.3,4579.2,0.7209]
[1758198041753,3.8431,4579.3,4579.2,0.7209]
[1758198042960,3.6231,4579.3,4579.2,0.7209]
[1758198043161,3.8431,4579.3,4579.2,0.7209]
[1758198043456,3.4278,4579.3,4579.2,0.7209]
[1758198043958,3.6404,4579.3,4579.2,0.7209]
[1758198044357,3.4278,4579.3,4579.2,0.7209]
[1758198045863,3.2078,4579.3,4579.2,0.7209]
[1758198050855,0.3729,4579.7,4579.5,0.1247]
[1758198051064,0.4153,4579.6,4579.5,0.6434]
[1758198052364,0.4153,4579.6,4579.5,0.8456]
[1758198052865,0.2126,4579.6,4579.5,0.8456]
[1758198054957,3.2078,4579.9,4579.8,0.4118]
[1758198055156,3.2078,4579.9,4579.8,0.7209]
[1758198056170,0.429,4580.1,4580.0,0.5237]
[1758198056469,0.7778,4580.1,4580.0,0.6379]
[1758198056662,0.7778,4580.1,4580.0,0.4294]
[1758198056868,0.7778,4580.1,4580.0,0.6379]
[1758198058170,0.405,4580.1,4580.0,0.8332]
[1758198058371,0.5578,4580.1,4580.0,0.8332]
[1758198058561,0.405,4580.1,4580.0,0.8332]
[1758198058865,0.5578,4580.1,4580.0,0.8332]
[1758198059864,0.5578,4580.1,4580.0,0.4294]
[1758198060064,0.405,4579.9,4579.8,0.3313]
[1758198060266,0.5578,4579.9,4579.8,0.3313]
[1758198060467,0.5578,4579.9,4579.8,0.5398]
[1758198061070,3.7656,4579.9,4579.8,0.3313]
[1758198061274,3.7656,4579.9,4579.8,0.0218]
[1758198061774,3.7656,4579.9,4579.8,0.3095]
[1758198062176,3.9856,4579.9,4579.8,0.3095]
[1758198064374,3.8328,4579.9,4579.8,0.518]
[1758198064774,3.2078,4579.9,4579.8,0.7133]
[1758198066879,3.2078,4580.5,4580.4,0.6942]
[1758198067375,3.4076,4580.5,4580.4,0.6942]
[1758198070781,3.2078,4580.5,4580.4,0.6942]
[1758198071182,3.4076,4580.5,4580.4,0.6942]
[1758198071878,3.6186,4580.5,4580.4,0.6942]
[1758198072781,3.771,4580.5,4580.0,0.118]
[1758198073083,0.1998,4579.6,4579.5,4.2467]
[1758198075078,3.3602,4580.5,4579.5,3.9531]
[1758198075281,0.6308,4580.4,4580.3,0.6942]
[1758198076380,0.4108,4580.4,4580.3,0.6942]
[1758198077179,3.2078,4580.5,4580.4,0.2936]
[1758198077378,3.2078,4580.5,4580.4,0.6942]
[1758198078781,0.4108,4581.1,4581.0,0.3202]
[1758198078988,0.4108,4581.1,4581.0,0.6138]
[1758198080392,0.1998,4581.1,4581.0,0.8122]
[1758198081377,0.4108,4581.1,4581.0,0.8122]
[1758198082383,0.1998,4581.1,4581.0,0.8122]
[1758198082888,3.4076,4581.2,4581.1,0.6942]
[1758198083084,3.2078,4581.2,4581.1,0.6942]
[1758198083982,3.2078,4581.7,4581.5,0.118]
[1758198084292,0.1998,4581.6,4581.5,0.8122]
[1758198087485,0.4108,4581.6,4581.5,0.8122]
[1758198090490,0.5632,4581.6,4581.5,0.6138]
[1758198090987,0.5632,4581.6,4581.5,0.4116]
[1758198091192,0.5632,4581.6,4581.5,0.2936]
[1758198091584,0.5632,4581.6,4581.5,0.6138]
[1758198092687,0.4108,4581.6,4581.5,0.6138]
[1758198092892,0.4108,4581.6,4581.5,0.8122]
[1758198093884,0.5632,4581.6,4581.5,0.8122]
[1758198094093,0.5632,4581.6,4581.5,0.6138]
[1758198095295,0.4108,4581.6,4581.5,0.6138]
[1758198095489,0.4108,4581.6,4581.5,0.8145]
[1758198097593,0.5639,4581.6,4581.5,0.6138]
[1758198097794,0.5639,4581.6,4581.5,0.4116]
[1758198097995,0.5639,4581.6,4581.5,0.2936]
[1758198098191,0.4108,4581.6,4581.4,0.3084]
[1758198098394,0.5507,4581.5,4581.4,0.3084]
[1758198098595,0.5507,4581.5,4581.4,0.5131]
[1758198098795,0.3976,4581.5,4581.4,0.5131]
[1758198099491,0.3976,4581.5,4581.4,0.7138]
[1758198099688,0.2025,4581.5,4581.4,0.7138]
[1758198100192,0.4225,4581.6,4581.5,0.5235]
[1758198100701,0.2025,4581.6,4581.5,0.8319]
[1758198102397,3.2078,4581.7,4581.6,0.7138]
[1758198103293,3.4103,4581.7,4581.6,0.7138]
[1758198106598,3.6054,4581.7,4581.6,0.7138]
[1758198107194,3.4103,4581.7,4581.6,0.7138]
[1758198108693,3.2078,4581.7,4581.6,0.7138]
[1758198109294,3.4103,4581.7,4581.6,0.7138]
[1758198109796,3.7585,4581.7,4581.6,0.7138]
[1758198110202,3.7585,4581.7,4581.5,0.3084]
[1758198110391,0.7707,4581.6,4581.5,0.3084]
[1758198112395,0.1531,4581.1,4581.0,0.118]
[1758198112593,0.5507,4581.1,4581.0,0.3227]
[1758198113000,0.5507,4581.1,4581.0,0.6311]
[1758198113706,3.9785,4581.1,4581.0,0.4264]
[1758198114006,3.9785,4581.1,4580.5,0.253]
[1758198114007,0.5507,4580.6,4580.5,0.118]
[1758198114407,0.3976,4580.6,4580.5,0.5234]
[1758198114600,0.3976,4580.6,4580.5,0.8318]
[1758198117108,3.7679,4581.1,4581.0,0.6222]
[1758198117304,3.9879,4581.1,4581.0,0.6222]
[1758198117502,3.8351,4581.1,4581.0,0.6222]
[1758198118908,3.8351,4581.1,4581.0,0.8195]
[1758198119108,3.6151,4581.1,4581.0,0.8195]
[1758198119407,3.8351,4581.1,4581.0,0.8195]
[1758198119806,3.9879,4581.1,4581.0,0.8195]
[1758198120402,3.8351,4581.1,4581.0,0.8195]
[1758198121004,3.2078,4581.1,4581.0,0.8195]
[1758198122112,3.4077,4581.1,4581.0,0.8195]
[1758198122304,3.6151,4581.1,4581.0,0.8195]
[1758198124716,3.4077,4581.1,4581.0,0.8195]
[1758198124919,3.2078,4581.1,4581.0,0.8195]
[1758198125710,0.21,4581.6,4581.5,0.5222]
[1758198125909,0.43,4581.6,4581.5,0.8135]
[1758198126121,0.6284,4581.6,4581.5,0.8135]
[1758198126320,0.4084,4581.6,4581.5,0.8135]
[1758198126621,3.2078,4581.7,4581.5,0.5222]
[1758198126917,3.2078,4581.7,4581.6,0.6897]
[1758198127925,0.22,4582.1,4582.0,0.5222]
[1758198128127,0.22,4582.1,4582.0,0.8135]
[1758198128519,3.3605,4582.5,4582.1,0.2913]
[1758198128719,0.21,4582.2,4582.1,0.2913]
[1758198128921,0.21,4582.2,4582.1,0.6897]
[1758198131628,3.4278,4582.5,4582.1,0.3984]
[1758198131925,3.6162,4582.5,4582.4,0.6897]
[1758198133222,3.7689,4582.5,4582.4,0.2913]
[1758198134031,3.7689,4582.5,4582.4,0.4932]
[1758198134330,3.6162,4582.5,4582.4,0.4932]
[1758198134517,3.8362,4582.5,4582.4,0.4932]
[1758198136531,3.6162,4582.5,4582.4,0.4932]
[1758198136829,3.8362,4582.5,4582.4,0.4932]
[1758198137134,3.9889,4582.5,4582.4,0.4932]
[1758198137425,3.6162,4582.5,4582.4,0.4932]
[1758198137631,3.8352,4582.5,4582.4,0.4932]
[1758198137832,3.8352,4582.5,4582.4,0.6897]
[1758198140737,3.9879,4582.5,4582.4,0.4932]
[1758198141136,3.9879,4582.5,4582.4,0.2913]
[1758198142839,3.7689,4582.5,4582.4,0.2913]
[1758198143042,3.9879,4582.5,4582.4,0.2913]
[1758198143536,3.8352,4582.5,4582.4,0.6897]
[1758198144236,3.9879,4582.5,4582.4,0.6897]
[1758198144442,3.8352,4582.5,4582.4,0.6897]
[1758198144933,3.6162,4582.5,4582.4,0.6897]
[1758198145134,3.8352,4582.5,4582.4,0.6897]
[1758198147037,3.7689,4582.5,4582.4,0.6897]
[1758198147242,3.8352,4582.5,4582.4,0.6897]
[1758198148931,3.2078,4582.5,4582.4,0.6897]
[1758198149342,3.4178,4582.5,4582.4,0.6897]
[1758198150030,3.6162,4582.5,4582.4,0.6897]
[1758198155934,3.7688,4582.5,4582.4,0.6897]
[1758198156135,3.7688,4582.5,4582.2,0.0218]
[1758198156344,3.6162,4582.5,4582.3,0.3091]
[1758198156542,0.5597,4582.4,4582.3,0.3091]
[1758198158045,0.7787,4582.4,4582.3,0.3091]
[1758198159748,0.1977,4582.4,4582.3,0.7179]
[1758198159940,3.2078,4582.5,4582.4,0.3091]
[1758198160141,3.2078,4582.5,4582.4,0.7179]
[1758198160142,3.4055,4582.5,4582.4,0.7179]
[1758198161647,3.6149,4583.0,4582.9,0.5189]
[1758198161845,3.8339,4583.0,4582.9,0.5189]
[1758198162240,3.7675,4583.0,4582.9,0.5189]
[1758198162841,0.5597,4582.7,4582.2,0.0218]
[1758198163041,0.4071,4582.4,4582.3,0.5189]
[1758198163242,0.4071,4582.4,4582.3,0.7179]
[1758198166746,0.1977,4582.4,4582.3,0.7179]
[1758198167846,0.4071,4582.4,4582.3,0.7179]
[1758198168150,0.5597,4582.4,4582.3,0.5189]
[1758198168745,0.4071,4582.4,4582.3,0.7179]
[1758198171547,0.1977,4582.4,4582.3,0.7179]
[1758198172549,0.1526,4582.8,4582.3,0.7179]
[1758198172746,0.1977,4582.6,4582.5,0.5348]
[1758198173052,0.1977,4582.6,4582.5,0.8439]
[1758198174455,3.2078,4583.0,4582.9,0.4088]
[1758198174654,3.2078,4583.0,4582.9,0.7179]
[1758198176646,3.6242,4583.5,4583.4,0.5103]
[1758198178448,3.7767,4583.5,4583.4,0.5103]
[1758198180155,3.7767,4583.5,4583.4,0.3054]
[1758198180957,3.7767,4583.5,4583.4,0.5103]
[1758198181159,3.6242,4583.5,4583.4,0.5103]
[1758198181357,3.2078,4583.5,4583.4,0.7055]
[1758198181557,3.186,4583.5,4583.4,0.7055]
[1758198182059,3.3902,4583.5,4583.4,0.7055]
[1758198182251,3.186,4583.5,4583.4,0.7055]
[1758198182758,3.186,4583.5,4583.4,4.7055]
[1758198183549,3.3902,4583.5,4583.4,0.7055]
[1758198183858,3.186,4583.5,4583.4,4.7055]
[1758198184552,3.186,4583.5,4583.4,5.09805]
[1758198184747,3.186,4583.5,4583.4,4.7055]
[1758198185153,3.412,4584.1,4584.0,0.5233]
[1758198185354,3.7767,4584.1,4584.0,0.4286]
[1758198185959,3.6242,4584.1,4584.0,0.6378]
[1758198186261,3.7639,4584.1,4584.0,0.8491]
[1758198186859,3.6114,4584.1,4584.0,0.8491]
[1758198188761,3.7639,4584.1,4584.0,0.8491]
[1758198190659,3.6114,4584.1,4584.0,0.8491]
[1758198191863,3.7639,4584.1,4584.0,0.8491]
[1758198193766,0.5561,4584.1,4584.0,0.8491]
[1758198193962,0.4036,4584.1,4584.0,0.8491]
[1758198196264,0.1965,4584.1,4584.0,0.8491]
[1758198196463,3.5793,4584.6,4584.5,0.3347]
[1758198196464,3.6114,4584.6,4584.5,0.3347]
[1758198196659,3.7639,4584.6,4584.5,0.4339]
[1758198197263,0.1525,4584.5,4584.1,0.3084]
[1758198197471,0.5561,4584.2,4584.1,0.5176]
[1758198197669,0.5561,4584.2,4584.1,0.3084]
[1758198198664,0.5561,4584.2,4583.8,0.0218]
[1758198198866,0.5561,4584.2,4583.9,0.3084]
[1758198199058,0.4036,4584.0,4583.9,0.3084]
[1758198199264,0.5561,4584.0,4583.9,0.3084]
[1758198200865,0.4036,4584.0,4583.9,0.7289]
[1758198204775,0.5561,4584.0,4583.9,0.7289]
[1758198204970,0.4036,4584.0,4583.9,0.7289]
[1758198205372,0.5561,4584.0,4583.8,0.0218]
[1758198205570,0.84075,4583.9,4583.8,0.0218]
[1758198205870,0.1965,4583.4,4582.6,3.2078]
[1758198206069,0.5343,4583.2,4582.6,0.219]
[1758198206270,0.4036,4582.8,4582.7,0.5176]
[1758198206666,0.5343,4582.8,4582.7,0.5176]
[1758198207368,0.5343,4582.8,4582.7,0.3084]
[1758198207969,0.5343,4582.8,4582.6,0.219]
[1758198208278,0.5343,4582.2,4582.1,0.3084]